[Event "DVM U16w 2024"]
[Site "Neumuenster"]
[Date "2024.12.29"]
[Round "5"]
[White "Lorenz, Veronika"]
[Black "Czaeczine, Paula"]
[Result "1/2-1/2"]
[ECO "C55"]
[WhiteElo "1974"]
[BlackElo "1811"]
[Annotator "NA RC"]
[PlyCount "135"]
[EventDate "2024.12.23"]
[EventType "team-tourn"]
[EventRounds "7"]
[EventCountry "GER"]
[SourceTitle "playchess.com"]
[Source "ChessBase"]
[SourceQuality "1"]
[TimeControl "40/5400+30:1800+30"]

1. e4 {[%emt 0:00:02]} e5 {[%emt 0:00:05]} 2. Nf3 {[%emt 0:00:01]} Nc6 {[%emt 0:00:04]} 3. Bb5 {[%emt 0:00:02]} a6 {[%emt 0:00:04]} 4. Ba4 {[%emt 0:00:03]} Nf6 {[%emt 0:00:06]} 5. d3 {[%emt 0:00:01]} b5 {[%emt 0:00:06]} 6. Bb3 {[%emt 0:00:01]} Be7 {[%emt 0:00:08]} 7. O-O {[%emt 0:00:05]} d6 {[%emt 0:00:06]} 8. c3 {[%emt 0:00:10]} O-O {[%emt 0:00:09]} 9. h3 {[%emt 0:00:02]} Na5 {[%emt 0:00:20]} 10. Bc2 {[%emt 0:00:01]} c5 {[%emt 0:00:26]} 11. d4 {[%emt 0:00:07]} cxd4 {[%emt 0:01:41]} 12. cxd4 {[%emt 0:00:01]} Qc7 {[%emt 0:00:32]} 13. Nc3 {[%emt 0:08:04]} Bd7 {[%emt 0:06:14]} 14. Bd2 {[%emt 0:11:19]} Nc4 {[%emt 0:05:36]} 15. Rb1 {[%emt 0:00:23]} Rac8 {[%emt 0:05:27]} 16. Bd3 {[%emt 0:00:28]} exd4 {[%emt 0:02:17]} 17. Nxd4 {[%emt 0:00:49]} Ne5 {[%emt 0:02:16]} 18. Be3 {[%emt 0:03:11]} Nxd3 {[%emt 0:05:36]} 19. Qxd3 {[%emt 0:00:01]} Rfe8 {[%emt 0:10:50]} 20. Rfd1 {[%emt 0:07:32]} Qc4 {[%emt 0:04:41]} 21. f3 {[%emt 0:04:01]} Qxd3 {[%emt 0:15:19]} 22. Rxd3 {[%emt 0:00:01]} b4 {[%emt 0:00:53]} 23. Nce2 {[%emt 0:03:26]} Bf8 {[%emt 0:03:26]} 24. Nf4 {[%emt 0:08:56]} Re5 {[%emt 0:06:02]} 25. Rd2 {[%emt 0:02:31]} d5 {[%emt 0:01:46]} 26. Nd3 {[%emt 0:00:23]} Ree8 {[%emt 0:01:38]} 27. e5 {[%emt 0:00:46]} Bb5 {[%emt 0:02:48]} 28. Nxb5 {[%emt 0:04:34]} axb5 {[%emt 0:00:09]} 29. Bd4 {[%emt 0:08:26]} Nd7 {[%emt 0:00:45]} 30. Re1 {[%emt 0:02:51]} g6 {[%emt 0:10:17]} 31. b3 {[%emt 0:10:10]} Rc6 {[%emt 0:01:59]} 32. Rde2 {[%emt 0:03:23]} Be7 {[%emt 0:06:36]} 33. Nf4 {[%emt 0:07:13]} Bh4 {[%emt 0:01:18]} 34. Bf2 {[%emt 0:10:50]} Bxf2+ {[%emt 0:00:36]} 35. Kxf2 {[%emt 0:00:09]} d4 {[%emt 0:01:44]} 36. Nd3 {[%emt 0:00:24]} Rce6 {[%emt 0:01:23]} 37. Re4 {[%emt 0:04:47]} Kf8 {[%emt 0:02:12]} 38. Rxd4 {[%emt 0:01:41]} Nxe5 {[%emt 0:00:26]} 39. Nxe5 {[%emt 0:01:06]} Rxe5 {[%emt 0:00:06]} 40. Rxe5 {[%emt 0:00:09]} Rxe5 {[%emt 0:00:05]} 41. Rxb4 {[%emt 0:30:08]} Rc5 {[%emt 0:32:20]} 42. Ke3 {[%emt 0:00:44]} Rc2 {[%emt 0:00:00]} 43. Rxb5 {[%emt 0:00:00]} Rxa2 {[%emt 0:00:00]} 44. g3 {[%emt 0:00:00]} Ke7 {[%emt 0:00:00]} 45. Rb7+ {[%emt 0:00:00]} Ke6 {[%emt 0:00:00]} 46. b4 {[%emt 0:00:00]} Rb2 {[%emt 0:00:00]} 47. Kf4 {[%emt 0:00:00]} h6 {[%emt 0:00:00]} 48. g4 {[%emt 0:00:00]} Kf6 {[%emt 0:00:00]} 49. b5 {[%emt 0:00:00]} Rb4+ {[%emt 0:00:00]} 50. Kg3 {[%emt 0:00:00]} g5 {[%emt 0:00:00]} 51. b6 {[%emt 0:00:00]} Rb2 {[%emt 0:00:00]} 52. Rb8 {[%emt 0:00:00]} Kg7 {[%emt 0:00:00]} 53. h4 {[%emt 0:00:00]} Kh7 {[%emt 0:00:00]} 54. b7 {[%emt 0:00:00]} Kg7 {[%emt 0:00:00]} 55. h5 {[%emt 0:01:11]} Kh7 {[%emt 0:00:00]} 56. Kh3 {[%emt 0:07:06]} Kg7 {[%emt 0:00:00]} 57. Kg3 {[%emt 0:00:55]} Kh7 {[%emt 0:00:00]} 58. Ra8 {[%emt 0:00:03]} Rxb7 {[%emt 0:00:00]} 59. Ra4 {[%emt 0:00:33]} Kg7 {[%emt 0:00:00]} 60. Kf2 {[%emt 0:00:14]} Rb3 {[%emt 0:00:00]} 61. Rd4 {[%emt 0:01:13]} Ra3 {[%emt 0:00:00]} 62. Ke2 {[%emt 0:00:04]} Kf6 {[%emt 0:00:00]} 63. Rd6+ {[%emt 0:00:07]} Kg7 {[%emt 0:00:00]} 64. Rd3 {[%emt 0:00:45]} Ra2+ {[%emt 0:00:00]} 65. Ke3 {[%emt 0:00:01]} Ra6 {[%emt 0:00:00]} 66. Ke4 {[%emt 0:01:07]} Kf6 {[%emt 0:00:00]} 67. Rd4 {[%emt 0:00:34]} Re6+ {[%emt 0:00:00]} 68. Kd3 {[%emt 0:00:25]} 1/2-1/2

[Event "DVM U16w 2024"]
[Site "Neumuenster"]
[Date "2024.12.29"]
[Round "5"]
[White "Reich, Elisabeth"]
[Black "Rafikova, Ailin"]
[Result "1/2-1/2"]
[ECO "B10"]
[WhiteElo "1861"]
[BlackElo "1735"]
[Annotator "NA RC"]
[PlyCount "132"]
[EventDate "2024.12.23"]
[EventType "team-tourn"]
[EventRounds "7"]
[EventCountry "GER"]
[SourceTitle "playchess.com"]
[Source "ChessBase"]
[SourceQuality "1"]
[TimeControl "40/5400+30:1800+30"]

1. e4 {[%emt 0:00:02]} c6 {[%emt 0:00:03]} 2. d3 {[%emt 0:00:03]} d5 {[%emt 0:00:04]} 3. Nd2 {[%emt 0:00:04]} e5 {[%emt 0:00:25]} 4. Ngf3 {[%emt 0:00:05]} Bd6 {[%emt 0:00:07]} 5. g3 {[%emt 0:00:04]} Nf6 {[%emt 0:00:31]} 6. Bg2 {[%emt 0:00:05]} O-O {[%emt 0:00:24]} 7. O-O {[%emt 0:00:04]} Nbd7 {[%emt 0:00:46]} 8. Re1 {[%emt 0:00:49]} Re8 {[%emt 0:01:12]} 9. Nh4 {[%emt 0:01:48]} Qb6 {[%emt 0:07:46]} 10. Nb3 {[%emt 0:02:18]} d4 {[%emt 0:06:22]} 11. Nf5 {[%emt 0:01:03]} Bb4 {[%emt 0:05:10]} 12. Nd2 {[%emt 0:00:57]} Nf8 {[%emt 0:03:57]} 13. Nc4 {[%emt 0:05:46]} Qc7 {[%emt 0:03:56]} 14. Bd2 {[%emt 0:00:27]} Bxd2 {[%emt 0:01:57]} 15. Nxd2 {[%emt 0:00:13]} Ng6 {[%emt 0:03:31]} 16. h4 {[%emt 0:03:44]} Ne7 {[%emt 0:05:28]} 17. Nxe7+ {[%emt 0:04:46]} Qxe7 {[%emt 0:01:06]} 18. a3 {[%emt 0:03:08]} Be6 {[%emt 0:02:12]} 19. Nf3 {[%emt 0:02:50]} Bg4 {[%emt 0:02:11]} 20. Qd2 {[%emt 0:01:13]} c5 {[%emt 0:03:45]} 21. Nh2 {[%emt 0:02:33]} Be6 {[%emt 0:02:00]} 22. Rac1 {[%emt 0:08:43]} Rac8 {[%emt 0:04:54]} 23. c4 {[%emt 0:02:13]} dxc3 {[%emt 0:01:27]} 24. Qxc3 {[%emt 0:00:13]} Qd6 {[%emt 0:02:50]} 25. Nf3 {[%emt 0:03:11]} Bg4 {[%emt 0:03:17]} 26. Nd2 {[%emt 0:01:01]} Nd7 {[%emt 0:05:38]} 27. Nc4 {[%emt 0:00:32]} Qc7 {[%emt 0:05:11]} 28. Ne3 {[%emt 0:02:58]} Be6 {[%emt 0:00:55]} 29. Rc2 {[%emt 0:03:09]} b6 {[%emt 0:03:33]} 30. Rf1 {[%emt 0:01:21]} Red8 {[%emt 0:02:07]} 31. f4 {[%emt 0:01:25]} f6 {[%emt 0:01:27]} 32. f5 {[%emt 0:00:18]} Bf7 {[%emt 0:00:22]} 33. g4 {[%emt 0:02:38]} Nb8 {[%emt 0:04:55]} 34. Rd2 {[%emt 0:01:28]} Nc6 {[%emt 0:01:07]} 35. Nc2 {[%emt 0:00:43]} Qd6 {[%emt 0:01:11]} 36. Rff2 {[%emt 0:05:14]} Rd7 {[%emt 0:02:21]} 37. g5 {[%emt 0:03:12]} Kf8 {[%emt 0:02:48]} 38. g6 {[%emt 0:03:07]} Bg8 {[%emt 0:01:46]} 39. h5 {[%emt 0:02:08]} h6 {[%emt 0:00:44]} 40. Rd1 {[%emt 0:00:28]} Rcd8 {[%emt 0:03:31]} 41. Bf1 {[%emt 0:30:25]} Rc7 {[%emt 0:32:37]} 42. Rc1 {[%emt 0:01:45]} Rdc8 {[%emt 0:02:33]} 43. Kg2 {[%emt 0:01:08]} Nd4 {[%emt 0:00:00]} 44. Ne3 {[%emt 0:00:00]} Qc6 {[%emt 0:00:00]} 45. Qe1 {[%emt 0:00:00]} Qb5 {[%emt 0:00:00]} 46. Ng4 {[%emt 0:00:00]} Qd7 {[%emt 0:00:00]} 47. Ne3 {[%emt 0:00:00]} Rb7 {[%emt 0:00:00]} 48. Qc3 {[%emt 0:00:00]} Rbb8 {[%emt 0:00:00]} 49. Be2 {[%emt 0:00:00]} Rc7 {[%emt 0:00:00]} 50. Bf1 {[%emt 0:00:00]} Rbc8 {[%emt 0:00:00]} 51. Qe1 {[%emt 0:00:00]} Qb5 {[%emt 0:00:00]} 52. Qc3 {[%emt 0:00:00]} Qa6 {[%emt 0:00:00]} 53. Kg1 {[%emt 0:03:36]} b5 {[%emt 0:00:00]} 54. Kg2 {[%emt 0:01:33]} Qb6 {[%emt 0:00:00]} 55. b4 {[%emt 0:01:04]} Qd6 {[%emt 0:00:00]} 56. Qb2 {[%emt 0:01:31]} cxb4 {[%emt 0:00:19]} 57. Rxc7 {[%emt 0:00:10]} Qxc7 {[%emt 0:01:32]} 58. Qxb4+ {[%emt 0:01:14]} Qc5 {[%emt 0:00:46]} 59. Qa5 {[%emt 0:01:27]} Nb3 {[%emt 0:03:02]} 60. Qb4 {[%emt 0:03:04]} Qxb4 {[%emt 0:01:33]} 61. axb4 {[%emt 0:00:02]} Nd4 {[%emt 0:00:40]} 62. Rb2 {[%emt 0:00:54]} Rc3 {[%emt 0:01:28]} 63. Rb1 {[%emt 0:00:22]} Nb3 {[%emt 0:00:56]} 64. Rb2 {[%emt 0:00:22]} Nd4 {[%emt 0:01:07]} 65. Rb1 {[%emt 0:00:08]} Nb3 {[%emt 0:01:15]} 66. Rb2 {[%emt 0:00:05]} Nd4 {[%emt 0:01:21]} 1/2-1/2

[Event "DVM U16w 2024"]
[Site "Neumuenster"]
[Date "2024.12.29"]
[Round "5"]
[White "Jacobasch, Ronja"]
[Black "Neumann, Helena"]
[Result "0-1"]
[ECO "A34"]
[WhiteElo "1801"]
[BlackElo "2041"]
[Annotator "NA"]
[PlyCount "92"]
[EventDate "2024.12.23"]
[EventType "team-tourn"]
[EventRounds "7"]
[EventCountry "GER"]
[SourceTitle "playchess.com"]
[Source "ChessBase"]
[SourceQuality "1"]
[TimeControl "40/5400+30:1800+30"]

1. c4 {[%emt 0:00:03]} c5 {[%emt 0:00:03]} 2. Nc3 {[%emt 0:00:07]} Nf6 {[%emt 0:00:04]} 3. g3 {[%emt 0:00:14]} d5 {[%emt 0:00:04]} 4. cxd5 {[%emt 0:00:22]} Nxd5 {[%emt 0:00:05]} 5. Bg2 {[%emt 0:00:22]} Nc7 {[%emt 0:00:04]} 6. Nf3 {[%emt 0:00:41]} Nc6 {[%emt 0:00:05]} 7. O-O {[%emt 0:04:54]} e5 {[%emt 0:00:05]} 8. d3 {[%emt 0:06:34]} Be7 {[%emt 0:00:08]} 9. b3 {[%emt 0:04:45]} Be6 {[%emt 0:00:15]} 10. Bb2 {[%emt 0:04:57]} f6 {[%emt 0:00:11]} 11. Rc1 {[%emt 0:04:38]} Qd7 {[%emt 0:00:11]} 12. Re1 {[%emt 0:09:10]} O-O {[%emt 0:00:56]} 13. a3 {[%emt 0:04:08]} Rad8 {[%emt 0:05:23]} 14. Qc2 {[%emt 0:06:53]} b6 {[%emt 0:10:02]} 15. Ne4 {[%emt 0:07:44]} a5 {[%emt 0:09:49]} 16. Red1 {[%emt 0:05:25]} Nb5 {[%emt 0:03:53]} 17. Ned2 {[%emt 0:05:27]} Ncd4 {[%emt 0:05:36]} 18. Nxd4 {[%emt 0:00:46]} exd4 {[%emt 0:00:08]} 19. Nc4 {[%emt 0:02:26]} Qc7 {[%emt 0:03:36]} 20. e3 {[%emt 0:07:41]} Rd7 {[%emt 0:02:31]} 21. a4 {[%emt 0:03:26]} Na7 {[%emt 0:00:32]} 22. e4 {[%emt 0:02:51]} f5 {[%emt 0:05:47]} 23. Re1 {[%emt 0:01:01]} f4 {[%emt 0:01:21]} 24. Qe2 {[%emt 0:01:43]} Bg5 {[%emt 0:03:42]} 25. Rb1 {[%emt 0:01:58]} Rdf7 {[%emt 0:01:10]} 26. Qh5 {[%emt 0:02:25]} h6 {[%emt 0:04:03]} 27. Bc1 {[%emt 0:02:24]} Nc6 {[%emt 0:03:56]} 28. e5 {[%emt 0:01:37]} fxg3 {[%emt 0:08:12]} 29. fxg3 {[%emt 0:00:13]} Bxc1 {[%emt 0:00:52]} 30. Rbxc1 {[%emt 0:00:37]} Bxc4 {[%emt 0:00:41]} 31. bxc4 {[%emt 0:00:24]} Rf5 {[%emt 0:00:09]} 32. Qg4 {[%emt 0:03:31]} Nxe5 {[%emt 0:01:11]} 33. Qe4 {[%emt 0:00:34]} Qf7 {[%emt 0:02:14]} 34. Rb1 {[%emt 0:03:57]} Qf6 {[%emt 0:04:31]} 35. g4 {[%emt 0:02:03]} Nf3+ {[%emt 0:01:08]} 36. Bxf3 {[%emt 0:00:06]} Rxf3 {[%emt 0:00:03]} 37. Qe6+ {[%emt 0:01:32]} Qxe6 {[%emt 0:00:10]} 38. Rxe6 {[%emt 0:00:03]} Rxd3 {[%emt 0:00:08]} 39. Rexb6 {[%emt 0:00:35]} Rc3 {[%emt 0:00:32]} 40. R6b5 {[%emt 0:00:44]} Rxc4 {[%emt 0:00:23]} 41. Rxa5 {[%emt 0:30:32]} d3 {[%emt 0:30:05]} 42. Rab5 {[%emt 0:00:00]} d2 {[%emt 0:00:00]} 43. Rd1 {[%emt 0:00:00]} Rc1 {[%emt 0:00:00]} 44. Rb1 {[%emt 0:00:00]} Rxb1 {[%emt 0:00:00]} 45. Rxb1 {[%emt 0:00:00]} c4 {[%emt 0:00:00]} 46. Rd1 {[%emt 0:00:00]} c3 {[%emt 0:00:00]} 0-1

[Event "DVM U16w 2024"]
[Site "Neumuenster"]
[Date "2024.12.29"]
[Round "5"]
[White "Czaeczine, Laura"]
[Black "Fock, Madiha"]
[Result "1-0"]
[ECO "B90"]
[WhiteElo "1787"]
[BlackElo "1797"]
[Annotator "NA RC"]
[PlyCount "103"]
[EventDate "2024.12.23"]
[EventType "team-tourn"]
[EventRounds "7"]
[EventCountry "GER"]
[SourceTitle "playchess.com"]
[Source "ChessBase"]
[SourceQuality "1"]
[TimeControl "40/5400+30:1800+30"]

1. e4 {[%emt 0:00:02]} c5 {[%emt 0:00:10]} 2. Nf3 {[%emt 0:00:04]} d6 {[%emt 0:00:06]} 3. d4 {[%emt 0:00:18]} cxd4 {[%emt 0:00:06]} 4. Nxd4 {[%emt 0:00:03]} Nf6 {[%emt 0:00:09]} 5. Nc3 {[%emt 0:00:08]} a6 {[%emt 0:00:05]} 6. h3 {[%emt 0:00:18]} b5 {[%emt 0:01:32]} 7. Nd5 {[%emt 0:03:40]} Nxd5 {[%emt 0:05:43]} 8. exd5 {[%emt 0:00:07]} Bb7 {[%emt 0:01:00]} 9. c4 {[%emt 0:01:22]} bxc4 {[%emt 0:05:14]} 10. Bxc4 {[%emt 0:01:33]} g6 {[%emt 0:06:38]} 11. Qb3 {[%emt 0:07:32]} Qc7 {[%emt 0:08:14]} 12. Be3 {[%emt 0:05:51]} Nd7 {[%emt 0:06:17]} 13. Qa4 {[%emt 0:17:00]} Bg7 {[%emt 0:10:26]} 14. Rc1 {[%emt 0:06:48]} O-O {[%emt 0:04:41]} 15. Be2 {[%emt 0:05:31]} Nc5 {[%emt 0:01:41]} 16. Qc4 {[%emt 0:03:27]} Qd7 {[%emt 0:02:46]} 17. Bg4 {[%emt 0:03:51]} Qa4 {[%emt 0:03:12]} 18. b4 {[%emt 0:04:39]} Ne4 {[%emt 0:05:25]} 19. O-O {[%emt 0:02:59]} Nf6 {[%emt 0:02:30]} 20. Bf3 {[%emt 0:01:43]} Rfc8 {[%emt 0:02:58]} 21. Nc6 {[%emt 0:02:13]} Bxc6 {[%emt 0:02:54]} 22. dxc6 {[%emt 0:00:44]} Rab8 {[%emt 0:02:17]} 23. Bd2 {[%emt 0:09:04]} e6 {[%emt 0:01:57]} 24. c7 {[%emt 0:01:24]} Rb6 {[%emt 0:00:14]} 25. Bc6 {[%emt 0:03:12]} Qa3 {[%emt 0:01:22]} 26. Bf3 {[%emt 0:09:00]} Nd7 {[%emt 0:02:48]} 27. Be2 {[%emt 0:04:09]} d5 {[%emt 0:01:46]} 28. Qc2 {[%emt 0:01:05]} Rb7 {[%emt 0:01:21]} 29. Qd3 {[%emt 0:01:14]} Qxd3 {[%emt 0:02:04]} 30. Bxd3 {[%emt 0:00:04]} Rb6 {[%emt 0:04:36]} 31. a4 {[%emt 0:00:48]} Ne5 {[%emt 0:04:11]} 32. Be2 {[%emt 0:00:53]} Rd6 {[%emt 0:01:45]} 33. b5 {[%emt 0:01:13]} axb5 {[%emt 0:00:30]} 34. axb5 {[%emt 0:00:13]} Nc4 {[%emt 0:00:33]} 35. Bb4 {[%emt 0:01:42]} Rd7 {[%emt 0:01:21]} 36. Bxc4 {[%emt 0:00:13]} dxc4 {[%emt 0:00:02]} 37. b6 {[%emt 0:00:08]} Bb2 {[%emt 0:01:25]} 38. b7 {[%emt 0:00:59]} Rdxc7 {[%emt 0:00:05]} 39. bxc8=Q+ {[%emt 0:00:10]} Rxc8 {[%emt 0:00:04]} 40. Rc2 {[%emt 0:00:13]} c3 {[%emt 0:00:13]} 41. Rd1 {[%emt 0:32:43]} Rc4 {[%emt 0:30:41]} 42. Be7 {[%emt 0:00:00]} Kg7 {[%emt 0:00:00]} 43. g4 {[%emt 0:00:00]} h6 {[%emt 0:00:00]} 44. Bh4 {[%emt 0:00:00]} h5 {[%emt 0:00:00]} 45. f3 {[%emt 0:00:00]} hxg4 {[%emt 0:00:00]} 46. hxg4 {[%emt 0:00:00]} Rc8 {[%emt 0:00:00]} 47. Be1 {[%emt 0:00:00]} Rc7 {[%emt 0:00:00]} 48. Rd3 {[%emt 0:00:00]} Kf6 {[%emt 0:00:00]} 49. Bxc3+ {[%emt 0:00:00]} Bxc3 {[%emt 0:00:00]} 50. Rdxc3 {[%emt 0:00:00]} Rd7 {[%emt 0:00:00]} 51. Kg2 {[%emt 0:00:00]} Kg5 {[%emt 0:00:00]} 52. Rc7 {[%emt 0:00:00]} 1-0

[Event "DVM U16w 2024"]
[Site "Neumuenster"]
[Date "2024.12.29"]
[Round "5"]
[White "Stepanjan, Marianne"]
[Black "Wang, Enya Marie"]
[Result "0-1"]
[ECO "C72"]
[WhiteElo "1779"]
[BlackElo "1755"]
[Annotator "NA"]
[PlyCount "65"]
[EventDate "2024.12.23"]
[EventType "team-tourn"]
[EventRounds "7"]
[EventCountry "GER"]
[SourceTitle "playchess.com"]
[Source "ChessBase"]
[SourceQuality "1"]
[TimeControl "40/5400+30:1800+30"]

1. e4 {[%emt 0:00:01]} e5 {[%emt 0:00:06]} 2. Nf3 {[%emt 0:00:03]} Nc6 {[%emt 0:00:04]} 3. Bb5 {[%emt 0:00:03]} a6 {[%emt 0:00:07]} 4. Ba4 {[%emt 0:00:05]} d6 {[%emt 0:00:17]} 5. O-O {[%emt 0:01:17]} Bg4 {[%emt 0:00:11]} 6. h3 {[%emt 0:02:06]} h5 {[%emt 0:00:45]} 7. Bxc6+ {[%emt 0:09:47]} bxc6 {[%emt 0:00:13]} 8. d3 {[%emt 0:08:44]} Qf6 {[%emt 0:01:18]} 9. Nc3 {[%emt 0:07:50]} Bxf3 {[%emt 0:02:27]} 10. Qxf3 {[%emt 0:01:05]} Qxf3 {[%emt 0:01:26]} 11. gxf3 {[%emt 0:00:39]} Ne7 {[%emt 0:02:17]} 12. f4 {[%emt 0:04:26]} f6 {[%emt 0:02:04]} 13. fxe5 {[%emt 0:03:04]} fxe5 {[%emt 0:00:14]} 14. f4 {[%emt 0:04:49]} Ng6 {[%emt 0:03:51]} 15. f5 {[%emt 0:14:16]} Ne7 {[%emt 0:02:35]} 16. Bg5 {[%emt 0:01:37]} Rb8 {[%emt 0:03:26]} 17. b3 {[%emt 0:02:29]} h4 {[%emt 0:01:19]} 18. Kh2 {[%emt 0:10:53]} Rd8 {[%emt 0:03:03]} 19. f6 {[%emt 0:04:20]} gxf6 {[%emt 0:01:01]} 20. Bxf6 {[%emt 0:01:05]} Rh7 {[%emt 0:01:35]} 21. Rg1 {[%emt 0:03:49]} Bh6 {[%emt 0:07:44]} 22. Rg4 {[%emt 0:03:29]} Kd7 {[%emt 0:01:28]} 23. Rxh4 {[%emt 0:03:12]} Bf4+ {[%emt 0:01:26]} 24. Kg2 {[%emt 0:00:44]} Rg8+ {[%emt 0:00:57]} 25. Rg4 {[%emt 0:04:09]} Rxg4+ {[%emt 0:00:24]} 26. hxg4 {[%emt 0:00:02]} Rh2+ {[%emt 0:00:13]} 27. Kf3 {[%emt 0:00:48]} Rxc2 {[%emt 0:01:09]} 28. Bxe7 {[%emt 0:02:16]} Rxc3 {[%emt 0:01:06]} 29. Bh4 {[%emt 0:00:40]} Rxd3+ {[%emt 0:01:03]} 30. Kf2 {[%emt 0:00:47]} Ke6 {[%emt 0:01:06]} 31. Bd8 {[%emt 0:00:53]} Rg3 {[%emt 0:00:44]} 32. Bxc7 {[%emt 0:01:17]} Rxg4 {[%emt 0:01:11]} 33. Rc1 {[%emt 0:01:09]} 0-1

[Event "DVM U16w 2024"]
[Site "Neumuenster"]
[Date "2024.12.29"]
[Round "5"]
[White "Sayouf, Rafif"]
[Black "Stepanjan, Tatevik Mia"]
[Result "0-1"]
[ECO "B41"]
[WhiteElo "1680"]
[BlackElo "1572"]
[Annotator "NA"]
[PlyCount "60"]
[EventDate "2024.12.23"]
[EventType "team-tourn"]
[EventRounds "7"]
[EventCountry "GER"]
[SourceTitle "playchess.com"]
[Source "ChessBase"]
[SourceQuality "1"]
[TimeControl "40/5400+30:1800+30"]

1. e4 {[%emt 0:00:02]} c5 {[%emt 0:00:05]} 2. Nf3 {[%emt 0:00:05]} Nc6 {[%emt 0:00:06]} 3. d4 {[%emt 0:00:04]} cxd4 {[%emt 0:00:10]} 4. Nxd4 {[%emt 0:00:05]} a6 {[%emt 0:00:19]} 5. c4 {[%emt 0:00:06]} e6 {[%emt 0:00:21]} 6. Nc3 {[%emt 0:00:11]} Bc5 {[%emt 0:01:28]} 7. Nb3 {[%emt 0:00:08]} Bb4 {[%emt 0:00:16]} 8. Bd2 {[%emt 0:00:45]} Nf6 {[%emt 0:00:23]} 9. f3 {[%emt 0:02:41]} O-O {[%emt 0:02:55]} 10. a3 {[%emt 0:00:17]} Be7 {[%emt 0:02:24]} 11. Be2 {[%emt 0:01:48]} d5 {[%emt 0:10:14]} 12. cxd5 {[%emt 0:02:41]} exd5 {[%emt 0:00:31]} 13. exd5 {[%emt 0:16:16]} Nxd5 {[%emt 0:00:31]} 14. Nxd5 {[%emt 0:01:03]} Qxd5 {[%emt 0:00:20]} 15. Bc3 {[%emt 0:00:16]} Qg5 {[%emt 0:02:10]} 16. g3 {[%emt 0:08:15]} Rd8 {[%emt 0:02:40]} 17. Nd2 {[%emt 0:02:51]} Qe3 {[%emt 0:02:20]} 18. Qc2 {[%emt 0:04:05]} Bc5 {[%emt 0:01:56]} 19. Ne4 {[%emt 0:03:24]} Nd4 {[%emt 0:12:02]} 20. Bxd4 {[%emt 0:02:05]} Bxd4 {[%emt 0:00:23]} 21. Rd1 {[%emt 0:03:50]} Bf5 {[%emt 0:05:56]} 22. Rf1 {[%emt 0:07:48]} Bh3 {[%emt 0:02:31]} 23. Rd3 {[%emt 0:07:32]} Qh6 {[%emt 0:04:34]} 24. Rxd4 {[%emt 0:05:54]} Rxd4 {[%emt 0:00:47]} 25. Rf2 {[%emt 0:00:12]} Qe3 {[%emt 0:00:59]} 26. g4 {[%emt 0:02:58]} Rad8 {[%emt 0:01:39]} 27. Nc3 {[%emt 0:04:12]} Rd2 {[%emt 0:02:32]} 28. Qb1 {[%emt 0:06:08]} a5 {[%emt 0:07:23]} 29. a4 {[%emt 0:02:39]} b6 {[%emt 0:00:46]} 30. Qa1 {[%emt 0:01:57]} Rc2 {[%emt 0:00:56]} 0-1

[Event "DVM U16w 2024"]
[Site "Neumuenster"]
[Date "2024.12.29"]
[Round "5"]
[White "Vasilieva, Sophie Victoria"]
[Black "Weidner, Marit"]
[Result "1-0"]
[ECO "D13"]
[WhiteElo "1677"]
[BlackElo "1553"]
[Annotator "NA"]
[PlyCount "91"]
[EventDate "2024.12.23"]
[EventType "team-tourn"]
[EventRounds "7"]
[EventCountry "GER"]
[SourceTitle "playchess.com"]
[Source "ChessBase"]
[SourceQuality "1"]
[TimeControl "40/5400+30:1800+30"]

1. d4 {[%emt 0:00:04]} d5 {[%emt 0:00:04]} 2. Nf3 {[%emt 0:00:11]} Bf5 {[%emt 0:00:19]} 3. c4 {[%emt 0:00:37]} c6 {[%emt 0:00:07]} 4. Nc3 {[%emt 0:00:09]} Nf6 {[%emt 0:00:11]} 5. cxd5 {[%emt 0:00:17]} cxd5 {[%emt 0:00:06]} 6. Bf4 {[%emt 0:00:22]} e6 {[%emt 0:00:24]} 7. e3 {[%emt 0:00:13]} Bb4 {[%emt 0:00:13]} 8. Bxb8 {[%emt 0:01:50]} Rxb8 {[%emt 0:00:12]} 9. Qa4+ {[%emt 0:00:18]} Qd7 {[%emt 0:02:29]} 10. Bb5 {[%emt 0:01:04]} Bxc3+ {[%emt 0:02:04]} 11. bxc3 {[%emt 0:00:26]} a6 {[%emt 0:01:09]} 12. Bxd7+ {[%emt 0:00:24]} Nxd7 {[%emt 0:00:01]} 13. O-O {[%emt 0:01:07]} Rd8 {[%emt 0:00:11]} 14. Ne5 {[%emt 0:02:57]} f6 {[%emt 0:00:52]} 15. Nxd7 {[%emt 0:00:47]} Rxd7 {[%emt 0:00:03]} 16. Rfe1 {[%emt 0:01:03]} Ke7 {[%emt 0:00:20]} 17. Rac1 {[%emt 0:02:54]} Bd3 {[%emt 0:02:06]} 18. Rcd1 {[%emt 0:02:20]} Bb5 {[%emt 0:00:29]} 19. Qa3+ {[%emt 0:01:59]} Kf7 {[%emt 0:00:07]} 20. Rb1 {[%emt 0:00:28]} Bd3 {[%emt 0:00:17]} 21. Rb4 {[%emt 0:02:30]} Rc8 {[%emt 0:00:34]} 22. Rd1 {[%emt 0:00:37]} Bb5 {[%emt 0:02:50]} 23. Rdb1 {[%emt 0:01:31]} Rdc7 {[%emt 0:00:24]} 24. Rc1 {[%emt 0:02:45]} Kg8 {[%emt 0:02:06]} 25. h3 {[%emt 0:02:34]} Bc4 {[%emt 0:01:30]} 26. Kh2 {[%emt 0:02:16]} e5 {[%emt 0:00:45]} 27. dxe5 {[%emt 0:01:10]} fxe5 {[%emt 0:00:10]} 28. g4 {[%emt 0:04:22]} Rf8 {[%emt 0:00:53]} 29. Kg3 {[%emt 0:01:49]} Rcf7 {[%emt 0:01:23]} 30. Rc2 {[%emt 0:00:32]} Bd3 {[%emt 0:00:57]} 31. Rd2 {[%emt 0:00:34]} Be4 {[%emt 0:00:13]} 32. c4 {[%emt 0:01:36]} Rf3+ {[%emt 0:00:39]} 33. Kh2 {[%emt 0:01:47]} d4 {[%emt 0:06:19]} 34. Qb3 {[%emt 0:06:17]} h6 {[%emt 0:24:36]} 35. c5+ {[%emt 0:01:22]} Kh7 {[%emt 0:00:14]} 36. Qe6 {[%emt 0:00:53]} dxe3 {[%emt 0:02:02]} 37. fxe3 {[%emt 0:00:31]} Rf2+ {[%emt 0:00:19]} 38. Rxf2 {[%emt 0:00:10]} Rxf2+ {[%emt 0:00:08]} 39. Kg1 {[%emt 0:00:58]} Rf6 {[%emt 0:01:53]} 40. Qxe5 {[%emt 0:00:50]} Bc6 {[%emt 0:00:18]} 41. Rf4 {[%emt 0:31:37]} Rg6 {[%emt 0:30:46]} 42. Qf5 {[%emt 0:00:53]} Be8 {[%emt 0:00:54]} 43. h4 {[%emt 0:00:33]} h5 {[%emt 0:00:30]} 44. Qxh5+ {[%emt 0:01:01]} Kg8 {[%emt 0:00:43]} 45. Qd5+ {[%emt 0:00:42]} Kh8 {[%emt 0:00:24]} 46. Rf8+ {[%emt 0:00:44]} 1-0